[Event "GCT Cote d Ivoire Blitz 2019"]
[Site "Abidjan"]
[Date "2019.05.11"]
[Round "4"]
[White "Carlsen, Magnus"]
[Black "Topalov, Veselin"]
[Result "1-0"]
[ECO "A29"]
[WhiteElo "2867"]
[BlackElo "2736"]
[Annotator "ChessBase"]
[PlyCount "53"]
[EventDate "2019.05.05"]
[EventType "tourn"]
[EventCountry "IVO"]
[SourceTitle "playchess.com"]
[Source "ChessBase"]
[SourceQuality "1"]
[TimeMode "Bronstein"]
[TimeControl "300+3"]

1. c4 {[%emt 0:00:00]} Nf6 {[%emt 0:00:00]} 2. Nc3 {[%emt 0:00:00]} e5 {[%emt 0:00:00]} 3. Nf3 {[%emt 0:00:00]} Nc6 {[%emt 0:00:00]} 4. g3 {[%emt 0:00:00]} d5 {[%emt 0:00:00]} 5. cxd5 {[%emt 0:00:00]} Nxd5 {[%emt 0:00:00]} 6. Bg2 {[%emt 0:00:00]} Nb6 {[%emt 0:00:00]} 7. O-O {[%emt 0:00:00]} Be7 {[%emt 0:00:00]} 8. a3 {[%emt 0:00:00]} Be6 {[%emt 0:00:00]} 9. b4 {[%emt 0:00:02]} O-O {[%emt 0:00:00]} 10. Rb1 {[%emt 0:00:03]} f6 {[%emt 0:00:00]} 11. b5 {[%emt 0:00:03]} Nd4 {[%emt 0:00:01]} 12. e3 {[%emt 0:00:03]} Nxf3+ {[%emt 0:00:01]} 13. Bxf3 {[%emt 0:00:03]} Rb8 {[%emt 0:00:03]} 14. d4 {[%emt 0:00:05]} Bd6 {[%emt 0:00:19]} 15. a4 {[%emt 0:00:09]} exd4 {[%emt 0:00:15]} 16. exd4 {[%emt 0:00:03]} Bf7 {[%emt 0:00:03]} 17. Qc2 {[%emt 0:00:32]} Kh8 {[%emt 0:00:35]} 18. a5 {[%emt 0:00:33]} Nc4 {[%emt 0:00:03]} 19. a6 {[%emt 0:00:03]} bxa6 {[%emt 0:00:04]} 20. bxa6 {[%emt 0:00:03]} Qd7 {[%emt 0:00:16]} 21. Rb7 {[%emt 0:00:25]} Rxb7 {[%emt 0:00:21]} 22. axb7 {[%emt 0:00:03]} c6 {[%emt 0:00:03]} 23. Ne4 {[%emt 0:00:04]} Be7 {[%emt 0:00:19]} 24. Be2 {[%emt 0:00:14]} Na5 {[%emt 0:00:03]} 25. Nc5 {[%emt 0:00:03]} Bxc5 {[%emt 0:00:03]} 26. Qxc5 {[%emt 0:00:03]} Qe8 {[%emt 0:00:14]} 27. b8=Q {[%emt 0:00:29]} 1-0

[Event "GCT Cote d Ivoire Blitz 2019"]
[Site "Abidjan"]
[Date "2019.05.11"]
[Round "5"]
[White "Topalov, Veselin"]
[Black "Nakamura, Hikaru"]
[Result "1/2-1/2"]
[ECO "A20"]
[WhiteElo "2736"]
[BlackElo "2805"]
[Annotator "RC"]
[PlyCount "111"]
[EventDate "2019.05.05"]
[EventType "tourn"]
[EventCountry "IVO"]
[SourceTitle "playchess.com"]
[Source "ChessBase"]
[SourceQuality "1"]
[TimeMode "Bronstein"]
[TimeControl "300+3"]

1. c4 {[%emt 0:00:00]} e5 {[%emt 0:00:00]} 2. d3 {[%emt 0:00:00]} Nc6 {[%emt 0:00:00]} 3. a3 {[%emt 0:00:00]} Nf6 {[%emt 0:00:05]} 4. Nf3 {[%emt 0:00:00]} d5 {[%emt 0:00:06]} 5. cxd5 {[%emt 0:00:00]} Nxd5 {[%emt 0:00:03]} 6. e4 {[%emt 0:00:00]} Nf6 {[%emt 0:00:07]} 7. Be2 {[%emt 0:00:00]} a5 {[%emt 0:00:05]} 8. O-O {[%emt 0:00:00]} Bc5 {[%emt 0:00:03]} 9. Be3 {[%emt 0:00:00]} Bb6 {[%emt 0:00:06]} 10. Nbd2 {[%emt 0:00:08]} Bxe3 {[%emt 0:00:19]} 11. fxe3 {[%emt 0:00:03]} Ng4 {[%emt 0:00:03]} 12. Nc4 {[%emt 0:00:03]} b5 {[%emt 0:00:03]} 13. h3 {[%emt 0:00:08]} bxc4 {[%emt 0:00:05]} 14. hxg4 {[%emt 0:00:03]} Bxg4 {[%emt 0:00:14]} 15. Qa4 {[%emt 0:00:04]} Bd7 {[%emt 0:00:28]} 16. Qxc4 {[%emt 0:00:03]} O-O {[%emt 0:00:03]} 17. Qc5 {[%emt 0:00:15]} Re8 {[%emt 0:00:10]} 18. Rac1 {[%emt 0:00:23]} a4 {[%emt 0:00:08]} 19. Bd1 {[%emt 0:00:20]} Re6 {[%emt 0:00:36]} 20. Rf2 {[%emt 0:00:17]} h6 {[%emt 0:00:21]} 21. b4 {[%emt 0:00:03]} Qe8 {[%emt 0:00:21]} 22. Nh4 {[%emt 0:00:57]} Rd6 {[%emt 0:00:03]} 23. Qc3 {[%emt 0:00:16]} Na7 {[%emt 0:00:03]} 24. Be2 {[%emt 0:00:09]} Nb5 25. Qb2 g6 {[%emt 0:00:27]} 26. Rc5 {[%emt 0:00:05]} Qe7 {[%emt 0:00:03]} 27. Nf3 {[%emt 0:00:06]} f6 {[%emt 0:00:20]} 28. d4 {[%emt 0:00:03]} exd4 {[%emt 0:00:10]} 29. Bxb5 {[%emt 0:00:27]} Bxb5 {[%emt 0:00:03]} 30. Rxb5 {[%emt 0:00:03]} dxe3 {[%emt 0:00:03]} 31. Re2 {[%emt 0:00:07]} Qxe4 {[%emt 0:00:04]} 32. Qc1 {[%emt 0:00:12]} Qd3 {[%emt 0:00:16]} 33. Rb7 {[%emt 0:00:29]} Qd1+ {[%emt 0:00:03]} 34. Qxd1 {[%emt 0:00:03]} Rxd1+ {[%emt 0:00:03]} 35. Kh2 Rd3 {[%emt 0:00:03]} 36. Rxc7 {[%emt 0:00:12]} Rxa3 {[%emt 0:00:03]} 37. b5 {[%emt 0:00:05]} Rb8 {[%emt 0:00:15]} 38. Nd4 {[%emt 0:00:03]} Rd3 {[%emt 0:00:03]} 39. Rc4 {[%emt 0:00:24]} a3 {[%emt 0:00:03]} 40. Ra4 {[%emt 0:00:05]} Rd8 {[%emt 0:00:29]} 41. Ne6 {[%emt 0:00:14]} R8d6 {[%emt 0:00:14]} 42. Nc5 {[%emt 0:00:03]} R3d5 {[%emt 0:00:05]} 43. Ne4 {[%emt 0:00:03]} Re6 {[%emt 0:00:03]} 44. Nc3 {[%emt 0:00:03]} Rc5 {[%emt 0:00:07]} 45. Rxa3 {[%emt 0:00:03]} f5 {[%emt 0:00:03]} 46. Rb3 {[%emt 0:00:03]} f4 {[%emt 0:00:04]} 47. b6 {[%emt 0:00:03]} Re8 {[%emt 0:00:04]} 48. b7 {[%emt 0:00:03]} Rb8 {[%emt 0:00:03]} 49. Ne4 {[%emt 0:00:08]} Rc7 {[%emt 0:00:05]} 50. Nd6 {[%emt 0:00:03]} Rc6 {[%emt 0:00:03]} 51. Rd3 {[%emt 0:00:03]} Kf8 {[%emt 0:00:05]} 52. g3 {[%emt 0:00:17]} g5 {[%emt 0:00:07]} 53. gxf4 {[%emt 0:00:06]} gxf4 {[%emt 0:00:03]} 54. Kg2 {[%emt 0:00:03]} Ke7 {[%emt 0:00:03]} 55. Ne4 {[%emt 0:00:04]} Rxb7 {[%emt 0:00:03]} 56. Kf3 {[%emt 0:00:03]} 1/2-1/2

[Event "GCT Cote d Ivoire Blitz 2019"]
[Site "Abidjan"]
[Date "2019.05.11"]
[Round "6"]
[White "Nakamura, Hikaru"]
[Black "Karjakin, Sergey"]
[Result "1/2-1/2"]
[ECO "C65"]
[WhiteElo "2805"]
[BlackElo "2773"]
[Annotator "RC"]
[PlyCount "185"]
[EventDate "2019.05.05"]
[EventType "tourn"]
[EventCountry "IVO"]
[SourceTitle "playchess.com"]
[Source "ChessBase"]
[SourceQuality "1"]
[TimeMode "Bronstein"]
[TimeControl "300+3"]

1. e4 {[%emt 0:00:00]} e5 {[%emt 0:00:00]} 2. Nf3 Nc6 3. Bb5 {[%emt 0:00:00]} Nf6 {[%emt 0:00:00]} 4. d3 {[%emt 0:00:00]} Bc5 {[%emt 0:00:00]} 5. O-O {[%emt 0:00:00]} Nd4 {[%emt 0:00:00]} 6. Be3 {[%emt 0:00:00]} Nxf3+ {[%emt 0:00:00]} 7. Qxf3 {[%emt 0:00:00]} Bxe3 {[%emt 0:00:00]} 8. Qxe3 {[%emt 0:00:00]} O-O {[%emt 0:00:00]} 9. d4 {[%emt 0:00:00]} d6 {[%emt 0:00:00]} 10. Be2 {[%emt 0:00:00]} c6 {[%emt 0:00:00]} 11. dxe5 {[%emt 0:00:00]} dxe5 {[%emt 0:00:00]} 12. Nd2 {[%emt 0:00:00]} Be6 {[%emt 0:00:03]} 13. a4 {[%emt 0:00:00]} Qb6 {[%emt 0:00:26]} 14. Qxb6 {[%emt 0:00:01]} axb6 {[%emt 0:00:03]} 15. b3 {[%emt 0:00:05]} Rfd8 {[%emt 0:00:03]} 16. Rfd1 {[%emt 0:00:03]} Kf8 {[%emt 0:00:08]} 17. Rac1 {[%emt 0:00:03]} Ke7 {[%emt 0:00:06]} 18. f3 {[%emt 0:00:03]} Ne8 {[%emt 0:00:14]} 19. Kf2 {[%emt 0:00:03]} Nd6 {[%emt 0:00:19]} 20. Nf1 {[%emt 0:00:03]} Rd7 {[%emt 0:00:12]} 21. Ne3 {[%emt 0:00:08]} Rad8 {[%emt 0:00:03]} 22. Re1 {[%emt 0:00:21]} f6 {[%emt 0:00:07]} 23. g3 {[%emt 0:00:03]} Ne8 {[%emt 0:00:23]} 24. h4 {[%emt 0:00:14]} Nc7 {[%emt 0:00:28]} 25. Ra1 {[%emt 0:00:30]} Na6 {[%emt 0:00:06]} 26. Red1 {[%emt 0:00:18]} Nc5 {[%emt 0:00:16]} 27. Rxd7+ {[%emt 0:00:03]} Rxd7 {[%emt 0:00:03]} 28. Ke1 {[%emt 0:00:23]} g6 {[%emt 0:00:18]} 29. b4 {[%emt 0:00:07]} Na6 {[%emt 0:00:03]} 30. c3 {[%emt 0:00:04]} Nc7 {[%emt 0:00:26]} 31. b5 {[%emt 0:00:58]} Bb3 {[%emt 0:00:03]} 32. bxc6 {[%emt 0:00:26]} bxc6 {[%emt 0:00:03]} 33. Rb1 {[%emt 0:00:03]} Bxa4 {[%emt 0:00:03]} 34. Rxb6 {[%emt 0:00:03]} h5 {[%emt 0:00:20]} 35. Nc4 {[%emt 0:00:19]} Ne6 {[%emt 0:00:11]} 36. Na5 {[%emt 0:00:22]} Rc7 {[%emt 0:00:15]} 37. Bc4 {[%emt 0:00:18]} Nc5 {[%emt 0:00:11]} 38. Be2 {[%emt 0:00:05]} Nd7 {[%emt 0:00:14]} 39. Rb4 {[%emt 0:00:12]} Nc5 {[%emt 0:00:03]} 40. Rb6 {[%emt 0:00:16]} Nd7 {[%emt 0:00:03]} 41. Ra6 {[%emt 0:00:03]} Nc5 {[%emt 0:00:22]} 42. Ra8 {[%emt 0:00:03]} Bb5 {[%emt 0:00:03]} 43. Rh8 {[%emt 0:00:05]} Ke6 {[%emt 0:00:08]} 44. Rb8 {[%emt 0:00:08]} Nd7 {[%emt 0:00:20]} 45. Re8+ {[%emt 0:00:03]} Kf7 {[%emt 0:00:03]} 46. Ra8 {[%emt 0:00:03]} Nc5 {[%emt 0:00:08]} 47. Bc4+ {[%emt 0:00:04]} Bxc4 {[%emt 0:00:13]} 48. Nxc4 {[%emt 0:00:03]} Rd7 {[%emt 0:00:04]} 49. Ke2 {[%emt 0:00:03]} Nb3 {[%emt 0:00:06]} 50. Rc8 {[%emt 0:00:07]} c5 {[%emt 0:00:03]} 51. Rc6 {[%emt 0:00:03]} Kg7 {[%emt 0:00:03]} 52. Nd6 {[%emt 0:00:05]} Rd8 {[%emt 0:00:03]} 53. Rc7+ {[%emt 0:00:03]} Kg8 {[%emt 0:00:03]} 54. Nc4 {[%emt 0:00:03]} Nc1+ {[%emt 0:00:03]} 55. Kf2 {[%emt 0:00:03]} Rd3 {[%emt 0:00:04]} 56. Nb6 {[%emt 0:00:05]} Rxc3 {[%emt 0:00:06]} 57. Nd5 {[%emt 0:00:03]} Rc2+ {[%emt 0:00:03]} 58. Ke1 {[%emt 0:00:06]} Nd3+ {[%emt 0:00:03]} 59. Kd1 {[%emt 0:00:03]} Rf2 {[%emt 0:00:03]} 60. Nxf6+ {[%emt 0:00:03]} Kf8 {[%emt 0:00:03]} 61. Nh7+ {[%emt 0:00:10]} Ke8 {[%emt 0:00:03]} 62. Nf6+ {[%emt 0:00:03]} Kf8 {[%emt 0:00:03]} 63. Nh7+ {[%emt 0:00:05]} Ke8 {[%emt 0:00:03]} 64. Ng5 {[%emt 0:00:03]} c4 {[%emt 0:00:03]} 65. Ne6 {[%emt 0:00:06]} Rxf3 {[%emt 0:00:03]} 66. Rxc4 {[%emt 0:00:03]} Rxg3 {[%emt 0:00:03]} 67. Rc7 {[%emt 0:00:03]} Nf4 {[%emt 0:00:03]} 68. Ng5 {[%emt 0:00:03]} Rg4 {[%emt 0:00:03]} 69. Rc5 {[%emt 0:00:03]} Rxh4 {[%emt 0:00:04]} 70. Rxe5+ {[%emt 0:00:03]} Kd7 {[%emt 0:00:03]} 71. Ra5 {[%emt 0:00:03]} Rg4 {[%emt 0:00:03]} 72. Nf3 {[%emt 0:00:03]} Kc7 {[%emt 0:00:03]} 73. Kd2 {[%emt 0:00:03]} h4 {[%emt 0:00:03]} 74. Ke3 {[%emt 0:00:03]} h3 {[%emt 0:00:03]} 75. Nh2 {[%emt 0:00:04]} Rh4 {[%emt 0:00:03]} 76. Kf3 {[%emt 0:00:03]} Ne6 {[%emt 0:00:03]} 77. Kg3 {[%emt 0:00:03]} Rxe4 {[%emt 0:00:03]} 78. Kxh3 {[%emt 0:00:03]} Kd6 {[%emt 0:00:03]} 79. Nf3 {[%emt 0:00:03]} Rb4 {[%emt 0:00:03]} 80. Kg3 {[%emt 0:00:03]} Ke7 {[%emt 0:00:03]} 81. Ng5 {[%emt 0:00:03]} Nd4 {[%emt 0:00:03]} 82. Ra6 {[%emt 0:00:03]} Nf5+ {[%emt 0:00:03]} 83. Kf2 {[%emt 0:00:03]} Rf4+ {[%emt 0:00:03]} 84. Ke2 {[%emt 0:00:03]} Nd6 {[%emt 0:00:03]} 85. Ke3 {[%emt 0:00:03]} Rf5 {[%emt 0:00:03]} 86. Nf3 {[%emt 0:00:03]} Rf6 {[%emt 0:00:03]} 87. Ra7+ {[%emt 0:00:03]} Kf8 {[%emt 0:00:03]} 88. Ng5 {[%emt 0:00:03]} Rf5 {[%emt 0:00:03]} 89. Ne6+ {[%emt 0:00:03]} Kg8 {[%emt 0:00:03]} 90. Rg7+ {[%emt 0:00:03]} Kh8 {[%emt 0:00:03]} 91. Rxg6 {[%emt 0:00:03]} Kh7 {[%emt 0:00:03]} 92. Rg7+ {[%emt 0:00:03]} Kh6 {[%emt 0:00:03]} 93. Rg5 {[%emt 0:00:05]} 1/2-1/2

[Event "GCT Cote d Ivoire Blitz 2019"]
[Site "Abidjan"]
[Date "2019.05.12"]
[Round "12"]
[White "Wei, Yi"]
[Black "Amin, Bassem"]
[Result "1-0"]
[ECO "A04"]
[WhiteElo "2737"]
[BlackElo "2683"]
[Annotator "ChessBase"]
[PlyCount "113"]
[EventDate "2019.05.05"]
[EventType "tourn"]
[EventCountry "IVO"]
[SourceTitle "playchess.com"]
[Source "ChessBase"]
[SourceQuality "1"]
[TimeMode "Bronstein"]
[TimeControl "300+3"]

1. Nf3 {[%emt 0:00:00]} f5 {[%emt 0:00:00]} 2. d3 {[%emt 0:00:03]} Nc6 {[%emt 0:00:00]} 3. d4 {[%emt 0:00:06]} e6 {[%emt 0:00:03]} 4. g3 {[%emt 0:00:03]} Nf6 {[%emt 0:00:03]} 5. Bg2 {[%emt 0:00:03]} Be7 {[%emt 0:00:05]} 6. c4 {[%emt 0:00:04]} O-O {[%emt 0:00:05]} 7. O-O {[%emt 0:00:06]} d6 {[%emt 0:00:04]} 8. d5 {[%emt 0:00:28]} Ne5 {[%emt 0:00:10]} 9. Nd4 {[%emt 0:00:09]} Nxc4 {[%emt 0:00:27]} 10. dxe6 {[%emt 0:00:06]} g6 {[%emt 0:00:24]} 11. Bh6 {[%emt 0:00:24]} Re8 {[%emt 0:00:03]} 12. Qc1 {[%emt 0:00:09]} Ne5 {[%emt 0:00:11]} 13. Nc3 {[%emt 0:00:18]} c5 {[%emt 0:00:15]} 14. Nc2 {[%emt 0:00:17]} Bxe6 {[%emt 0:00:19]} 15. Bxb7 {[%emt 0:00:03]} Rb8 {[%emt 0:00:03]} 16. Bg2 {[%emt 0:00:03]} d5 {[%emt 0:00:11]} 17. Bf4 {[%emt 0:00:12]} Bd6 {[%emt 0:00:34]} 18. Bg5 {[%emt 0:00:28]} d4 {[%emt 0:00:12]} 19. Nd5 {[%emt 0:00:04]} Bxd5 {[%emt 0:00:25]} 20. Bxd5+ {[%emt 0:00:03]} Nf7 {[%emt 0:00:03]} 21. e3 {[%emt 0:00:18]} d3 {[%emt 0:00:11]} 22. Ne1 {[%emt 0:00:03]} Be5 {[%emt 0:00:06]} 23. Bxf7+ {[%emt 0:00:21]} Kxf7 {[%emt 0:00:03]} 24. Qc4+ {[%emt 0:00:21]} Qd5 {[%emt 0:00:03]} 25. Qxd5+ {[%emt 0:00:08]} Nxd5 {[%emt 0:00:03]} 26. Nxd3 {[%emt 0:00:03]} Bxb2 {[%emt 0:00:17]} 27. Rab1 {[%emt 0:00:20]} c4 {[%emt 0:00:04]} 28. Nxb2 {[%emt 0:00:12]} Nc3 {[%emt 0:00:03]} 29. Nxc4 {[%emt 0:00:07]} Rxb1 {[%emt 0:00:27]} 30. Nd6+ {[%emt 0:00:03]} Kf8 {[%emt 0:00:03]} 31. Rxb1 {[%emt 0:00:03]} Nxb1 {[%emt 0:00:03]} 32. Nxe8 {[%emt 0:00:04]} Kxe8 {[%emt 0:00:03]} 33. Bf6 {[%emt 0:00:05]} Kf7 {[%emt 0:00:05]} 34. Bd4 {[%emt 0:00:04]} a6 {[%emt 0:00:03]} 35. f3 {[%emt 0:00:03]} Nd2 {[%emt 0:00:04]} 36. Kf2 {[%emt 0:00:03]} Ke6 {[%emt 0:00:03]} 37. Ke2 {[%emt 0:00:05]} Nc4 {[%emt 0:00:03]} 38. Kd3 {[%emt 0:00:03]} Nd6 {[%emt 0:00:03]} 39. Bc5 {[%emt 0:00:05]} Nf7 {[%emt 0:00:03]} 40. Bd4 {[%emt 0:00:31]} Ng5 {[%emt 0:00:03]} 41. Ke2 {[%emt 0:00:03]} Kd5 {[%emt 0:00:03]} 42. h4 {[%emt 0:00:03]} Nf7 {[%emt 0:00:03]} 43. Kd3 {[%emt 0:00:03]} Nd6 {[%emt 0:00:04]} 44. Bc3 {[%emt 0:00:03]} h6 {[%emt 0:00:22]} 45. Bg7 {[%emt 0:00:03]} Nf7 {[%emt 0:00:04]} 46. Kc3 {[%emt 0:00:07]} g5 {[%emt 0:00:04]} 47. h5 {[%emt 0:00:03]} g4 {[%emt 0:00:03]} 48. e4+ {[%emt 0:00:08]} Ke6 {[%emt 0:00:07]} 49. fxg4 {[%emt 0:00:03]} fxg4 {[%emt 0:00:05]} 50. Kd4 {[%emt 0:00:04]} Kd6 {[%emt 0:00:10]} 51. e5+ {[%emt 0:00:03]} Ke6 {[%emt 0:00:04]} 52. Ke4 {[%emt 0:00:03]} a5 {[%emt 0:00:11]} 53. Kf4 {[%emt 0:00:03]} a4 {[%emt 0:00:04]} 54. a3 {[%emt 0:00:03]} Kd5 {[%emt 0:00:24]} 55. Kf5 {[%emt 0:00:03]} Ng5 {[%emt 0:00:05]} 56. Bxh6 {[%emt 0:00:03]} Nf3 {[%emt 0:00:05]} 57. Bf4 {[%emt 0:00:08]} 1-0

[Event "GCT Cote d Ivoire Blitz 2019"]
[Site "Abidjan"]
[Date "2019.05.12"]
[Round "14"]
[White "Wei, Yi"]
[Black "Vachier-Lagrave, Maxime"]
[Result "0-1"]
[ECO "D80"]
[WhiteElo "2737"]
[BlackElo "2792"]
[Annotator "ChessBase"]
[PlyCount "88"]
[EventDate "2019.05.05"]
[EventType "tourn"]
[EventCountry "IVO"]
[SourceTitle "playchess.com"]
[Source "ChessBase"]
[SourceQuality "1"]
[TimeMode "Bronstein"]
[TimeControl "300+3"]

1. d4 {[%emt 0:00:00]} Nf6 {[%emt 0:00:00]} 2. c4 {[%emt 0:00:00]} g6 {[%emt 0:00:00]} 3. Nc3 {[%emt 0:00:00]} d5 {[%emt 0:00:00]} 4. Bg5 {[%emt 0:00:00]} Ne4 {[%emt 0:00:00]} 5. Bh4 {[%emt 0:00:00]} Nxc3 {[%emt 0:00:00]} 6. bxc3 {[%emt 0:00:00]} dxc4 {[%emt 0:00:00]} 7. e3 {[%emt 0:00:00]} Be6 {[%emt 0:00:00]} 8. Nf3 {[%emt 0:00:00]} Bg7 {[%emt 0:00:02]} 9. Qb1 {[%emt 0:00:00]} b6 {[%emt 0:00:35]} 10. Ng5 {[%emt 0:00:00]} Bd5 {[%emt 0:00:03]} 11. e4 {[%emt 0:00:00]} h6 {[%emt 0:00:03]} 12. Nh3 {[%emt 0:00:00]} Bb7 {[%emt 0:00:10]} 13. Bxc4 {[%emt 0:00:01]} c5 {[%emt 0:00:08]} 14. Nf4 {[%emt 0:00:33]} Qd7 {[%emt 0:00:26]} 15. e5 {[%emt 0:00:32]} e6 {[%emt 0:00:07]} 16. O-O {[%emt 0:01:26]} cxd4 {[%emt 0:00:28]} 17. Bf6 {[%emt 0:00:40]} Bxf6 {[%emt 0:00:07]} 18. exf6 {[%emt 0:00:03]} Nc6 {[%emt 0:00:03]} 19. Re1 {[%emt 0:00:21]} O-O-O {[%emt 0:00:26]} 20. Nxe6 {[%emt 0:00:04]} Rde8 {[%emt 0:00:38]} 21. Nxd4 {[%emt 0:00:03]} Nxd4 {[%emt 0:00:03]} 22. cxd4 {[%emt 0:00:03]} Qxd4 {[%emt 0:00:05]} 23. Bxf7 {[%emt 0:00:37]} Rxe1+ {[%emt 0:00:03]} 24. Qxe1 {[%emt 0:00:03]} Qxf6 {[%emt 0:00:03]} 25. Rc1+ {[%emt 0:00:26]} Kb8 {[%emt 0:00:03]} 26. Bxg6 {[%emt 0:00:03]} Rg8 {[%emt 0:00:34]} 27. Be4 {[%emt 0:00:03]} Re8 {[%emt 0:00:03]} 28. f3 {[%emt 0:00:05]} Bxe4 {[%emt 0:00:03]} 29. fxe4 {[%emt 0:00:03]} Qd4+ {[%emt 0:00:03]} 30. Kh1 {[%emt 0:00:04]} Rxe4 {[%emt 0:00:26]} 31. Qg3+ {[%emt 0:00:03]} Qe5 {[%emt 0:00:03]} 32. Qg8+ {[%emt 0:00:03]} Qe8 {[%emt 0:00:03]} 33. Qg3+ {[%emt 0:00:03]} Ka8 {[%emt 0:00:12]} 34. Qf3 {[%emt 0:00:03]} Qc6 {[%emt 0:00:14]} 35. Rd1 {[%emt 0:00:17]} Kb7 {[%emt 0:00:09]} 36. h3 {[%emt 0:00:03]} Re7 {[%emt 0:00:07]} 37. Qf5 {[%emt 0:00:03]} a5 {[%emt 0:00:05]} 38. Qf4 {[%emt 0:00:10]} Re6 {[%emt 0:00:06]} 39. Qf7+ {[%emt 0:00:03]} Ka6 {[%emt 0:00:03]} 40. Rd7 {[%emt 0:00:03]} Qc4 {[%emt 0:00:12]} 41. Qf2 {[%emt 0:00:12]} Re2 {[%emt 0:00:10]} 42. Qf3 {[%emt 0:00:03]} Rxa2 {[%emt 0:00:09]} 43. Qa8+ {[%emt 0:00:03]} Kb5 {[%emt 0:00:03]} 44. Qe8 {[%emt 0:00:05]} Qf1+ {[%emt 0:00:03]} 0-1

[Event "GCT Cote d Ivoire Blitz 2019"]
[Site "Abidjan"]
[Date "2019.05.12"]
[Round "18"]
[White "Vachier-Lagrave, Maxime"]
[Black "Nepomniachtchi, Ian"]
[Result "1-0"]
[ECO "C55"]
[WhiteElo "2792"]
[BlackElo "2776"]
[Annotator "RC"]
[PlyCount "127"]
[EventDate "2019.05.05"]
[EventType "tourn"]
[EventCountry "IVO"]
[SourceTitle "playchess.com"]
[Source "ChessBase"]
[SourceQuality "1"]
[TimeMode "Bronstein"]
[TimeControl "300+3"]

1. e4 {[%emt 0:00:00]} e5 {[%emt 0:00:00]} 2. Nf3 {[%emt 0:00:00]} Nc6 {[%emt 0:00:00]} 3. Bc4 {[%emt 0:00:00]} Nf6 {[%emt 0:00:00]} 4. d3 {[%emt 0:00:00]} Be7 {[%emt 0:00:00]} 5. O-O {[%emt 0:00:00]} O-O {[%emt 0:00:00]} 6. Re1 {[%emt 0:00:00]} d6 {[%emt 0:00:00]} 7. a4 {[%emt 0:00:00]} a5 {[%emt 0:00:00]} 8. Nbd2 {[%emt 0:00:00]} Kh8 {[%emt 0:00:00]} 9. Nf1 {[%emt 0:00:00]} Be6 {[%emt 0:00:00]} 10. Ng3 {[%emt 0:00:04]} Nd7 {[%emt 0:00:02]} 11. Be3 {[%emt 0:00:14]} Bf6 {[%emt 0:00:14]} 12. Bb5 {[%emt 0:00:18]} Na7 {[%emt 0:00:07]} 13. Bxd7 {[%emt 0:00:07]} Qxd7 {[%emt 0:00:20]} 14. d4 {[%emt 0:00:03]} exd4 {[%emt 0:00:09]} 15. Bxd4 {[%emt 0:00:03]} Bxd4 {[%emt 0:00:04]} 16. Qxd4 {[%emt 0:00:08]} Nc6 {[%emt 0:00:03]} 17. Qc3 {[%emt 0:00:03]} f6 {[%emt 0:00:06]} 18. h3 {[%emt 0:00:06]} Rae8 {[%emt 0:00:03]} 19. b3 {[%emt 0:00:06]} b6 {[%emt 0:00:11]} 20. Rad1 {[%emt 0:00:03]} Bf7 {[%emt 0:00:14]} 21. Kh2 {[%emt 0:00:05]} Ne5 {[%emt 0:00:14]} 22. Nd4 {[%emt 0:00:03]} Ng6 {[%emt 0:00:17]} 23. Ndf5 {[%emt 0:00:03]} Be6 {[%emt 0:00:07]} 24. Nd4 {[%emt 0:00:03]} Bg8 {[%emt 0:00:04]} 25. Re3 {[%emt 0:00:03]} Re5 {[%emt 0:00:05]} 26. Nf3 {[%emt 0:00:05]} Rc5 {[%emt 0:00:03]} 27. Qd2 {[%emt 0:00:05]} Re8 {[%emt 0:00:03]} 28. c4 {[%emt 0:00:03]} Ne5 {[%emt 0:00:10]} 29. Nd4 {[%emt 0:00:13]} Nc6 {[%emt 0:00:04]} 30. Ndf5 {[%emt 0:00:04]} Ne7 {[%emt 0:00:07]} 31. Nd4 {[%emt 0:00:18]} Nc6 {[%emt 0:00:03]} 32. Nb5 {[%emt 0:00:03]} Ne5 {[%emt 0:00:06]} 33. f4 {[%emt 0:00:04]} Ng6 {[%emt 0:00:13]} 34. Rf1 {[%emt 0:00:03]} Re7 {[%emt 0:00:33]} 35. Nc3 {[%emt 0:00:11]} Re8 {[%emt 0:00:05]} 36. Nd5 {[%emt 0:00:09]} Qd8 {[%emt 0:00:03]} 37. Nf5 {[%emt 0:00:13]} c6 {[%emt 0:00:18]} 38. Nc3 {[%emt 0:00:05]} d5 {[%emt 0:00:03]} 39. exd5 {[%emt 0:00:10]} cxd5 {[%emt 0:00:03]} 40. Rxe8 {[%emt 0:00:22]} Qxe8 {[%emt 0:00:03]} 41. Nxd5 {[%emt 0:00:03]} Bxd5 {[%emt 0:00:23]} 42. cxd5 {[%emt 0:00:03]} Qd7 {[%emt 0:00:03]} 43. Ne3 {[%emt 0:00:09]} Qd6 {[%emt 0:00:08]} 44. Nc4 {[%emt 0:00:14]} Rxd5 {[%emt 0:00:30]} 45. Qe3 {[%emt 0:00:09]} Rd3 {[%emt 0:00:05]} 46. Qe4 {[%emt 0:00:22]} Qd8 {[%emt 0:00:11]} 47. Re1 {[%emt 0:00:03]} Nf8 {[%emt 0:00:12]} 48. Nxb6 {[%emt 0:00:17]} Rxb3 {[%emt 0:00:03]} 49. Qe8 {[%emt 0:00:27]} Rd3 {[%emt 0:00:03]} 50. Qf7 {[%emt 0:00:03]} Rd2 {[%emt 0:00:12]} 51. Re8 {[%emt 0:00:59]} Rxg2+ {[%emt 0:00:03]} 52. Kxg2 {[%emt 0:00:03]} Qd2+ {[%emt 0:00:03]} 53. Kg3 {[%emt 0:00:03]} Qd3+ {[%emt 0:00:14]} 54. Kh4 {[%emt 0:00:08]} g5+ {[%emt 0:00:04]} 55. Kg4 {[%emt 0:00:11]} Qd1+ {[%emt 0:00:17]} 56. Kf5 {[%emt 0:00:03]} Qd3+ {[%emt 0:00:04]} 57. Kxf6 {[%emt 0:00:09]} Qd4+ {[%emt 0:00:05]} 58. Kxg5 {[%emt 0:00:08]} Qg1+ {[%emt 0:00:03]} 59. Kf5 {[%emt 0:00:03]} Qc5+ {[%emt 0:00:08]} 60. Nd5 {[%emt 0:00:03]} Qc2+ {[%emt 0:00:03]} 61. Re4 {[%emt 0:00:04]} Qc8+ {[%emt 0:00:03]} 62. Kg5 {[%emt 0:00:03]} h6+ {[%emt 0:00:12]} 63. Kh4 {[%emt 0:00:03]} Ng6+ {[%emt 0:00:03]} 64. Qxg6 {[%emt 0:00:03]} 1-0